fUSD/lending_fUSD_20251221
["ID","MTS","AMOUNT","RATE_DAILY","PERIOD"]
[399420184,1766337058288,-1000.0,0.0003897,2]
[399420185,1766337058298,-1000.0,0.0003897,2]
[399420186,1766337058308,-1000.0,0.0003897,2]
[399420187,1766337058318,-1000.0,0.0003897,2]
[399420188,1766337058327,-1000.0,0.0003897,2]
[399420189,1766337058337,-1000.0,0.0003897,2]
[399420190,1766337058347,-1000.0,0.0003897,2]
[399420191,1766337058356,-1000.0,0.0003897,2]
[399420192,1766337058366,-1000.0,0.0003897,2]
[399420193,1766337058375,-1000.0,0.0003897,2]
[399420194,1766337058385,-1000.0,0.0003897,2]
[399420195,1766337058395,-1000.0,0.0003897,2]
[399420196,1766337058405,-1000.0,0.0003897,2]
[399420197,1766337058414,-1000.0,0.0003897,2]
[399420198,1766337058424,-1074.23710306,0.0003897,2]
[399420199,1766337058434,-7000.0,0.0003897,2]
[399420200,1766337058444,-7000.0,0.0003897,2]
[399420201,1766337058454,-7000.0,0.0003897,2]
[399420202,1766337058464,-7000.0,0.0003897,2]
[399420203,1766337058474,-1161262.65481839,0.00038973,4]
[399420204,1766337058493,-2500.94388863,0.00038973,4]
[399420205,1766337058506,-673.76715475,0.00038973,4]
[399420206,1766337058518,-609.60881593,0.00038973,4]
[399420207,1766337058539,-1533.014797,0.00038973,4]
[399420208,1766337058554,-32460.18634,0.00038973,4]
[399420209,1766337058727,-298.50596504,0.00024915,2]
[399420210,1766337058738,-274.543,0.00024915,2]
[399420211,1766337058750,-800.197906,0.00024915,2]
[399420212,1766337058762,-3318.44912896,0.00024915,2]
[399420213,1766337058777,-809.74516329,0.00038973,4]
[399420214,1766337058789,-516.22235736,0.00038973,4]
[399420215,1766337058831,-257.93483998,0.00038973,4]
[399420216,1766337058844,-795.63389927,0.00038973,4]
[399420217,1766337058858,-2773.59137698,0.00038973,4]
[399420218,1766337058869,-324.598953,0.00038973,4]
[399420219,1766337058885,-438.0,0.00038973,4]
[399420220,1766337059164,-373.9744,0.00038973,4]
[399420221,1766337059185,-358.8,0.00038051,2]
[399420222,1766337059197,-1336.38678133,0.00038051,2]
[399420223,1766337059207,-68854.39114272,0.00038973,4]
[399420224,1766337059218,-11947.57819722,0.00038973,4]
[399420225,1766337059229,-1073.91176786,0.00038973,4]
[399420226,1766337059240,-10051.76125889,0.00038973,4]
[399420227,1766337059251,-6303.4075235,0.00038973,4]
[399420228,1766337063112,150.0,0.00021416,120]
[399420229,1766337063221,288.13150355,0.00028918,120]
[399420230,1766337065037,195.0,0.00021416,120]
[399420231,1766337065136,195.0,0.00028918,120]
[399420232,1766337065288,195.0,0.00034671,120]
[399420233,1766337066185,300.0,0.00021416,120]
[399420234,1766337066275,300.0,0.00028918,120]
[399420235,1766337066386,300.0,0.00034671,120]
[399420236,1766337067069,200.0,0.00021416,120]
[399420237,1766337067179,200.0,0.00028918,120]
[399420238,1766337067214,999.0,0.00032876,120]
[399420239,1766337067274,200.0,0.00034671,120]
[399420240,1766337067370,200.0,0.00034671,120]
[399420241,1766337067555,200.0,0.00034671,120]
[399420242,1766337067640,999.0,0.00033972,120]
[399420243,1766337067927,999.0,0.00035068,120]
[399420244,1766337068284,300.0,0.00021416,120]
[399420245,1766337068411,300.0,0.00020442,120]
[399420246,1766337068510,300.0,0.00028028,120]
[399420247,1766337068617,300.0,0.00028028,120]
[399420248,1766337068722,300.0,0.00028028,120]
[399420249,1766337069428,2500.0,0.00021416,120]
[399420250,1766337069538,2500.0,0.00020442,120]
[399420251,1766337069652,2500.0,0.00028028,120]
[399420252,1766337069761,2500.0,0.00028028,120]
[399420253,1766337070120,2500.0,0.00028028,120]
[399420254,1766337081856,2000.0,0.0003561,30]
[399420255,1766337097396,670.618,0.00035045,40]
[399420259,1766337121525,300.0,0.00010482,2]
[399420260,1766337149591,295412.20573487,0.00010384,2]
[399420261,1766337149924,170.00069611,0.00010384,2]
[399420262,1766337150980,-305.75,0.00010384,2]
[399420263,1766337154418,-160.79287812,0.00010384,2]
[399420264,1766337155873,-165.34295162,0.00010384,2]
[399420265,1766337158064,-325.86704838,0.00010384,2]
[399420266,1766337160156,-280.23608459,0.00010384,2]
[399420267,1766337163764,-167.68895809,0.00010384,2]
[399420268,1766337166013,-443.64321213,0.00010384,2]
[399420269,1766337171127,-392.94256692,0.00010384,2]
[399420270,1766337173986,205.01,0.000356,30]
[399420271,1766337174737,-447.70157603,0.00010384,2]
[399420272,1766337176166,-177.50363396,0.00010384,2]
[399420273,1766337178283,-206.21678787,0.00010384,2]
[399420274,1766337180340,-267.10738813,0.00010384,2]
[399420275,1766337180364,-5644.32946716,0.00010384,2]
[399420276,1766337181882,-300.0,0.00010383,2]
[399420277,1766337181908,-154.66203546,0.00010384,2]
[399420278,1766337184792,-609.84158864,0.00010384,2]
[399420279,1766337186544,-888.0,0.00010383,2]
[399420280,1766337186580,-8224.01,0.00010384,2]
[399420281,1766337186698,-10000.01,0.00010384,2]
[399420282,1766337187341,-269.4494774,0.00010384,2]
[399420285,1766337188851,-276.18542143,0.00010384,2]
[399420287,1766337195483,-10000.01,0.00010384,2]
[399420288,1766337195520,-10000.01,0.00010384,2]
[399420289,1766337195534,-10000.01,0.00010384,2]
[399420290,1766337195548,-10000.01,0.00010384,2]
[399420291,1766337195587,-10000.01,0.00010384,2]
[399420292,1766337195765,-10000.01,0.00010384,2]
[399420293,1766337195954,-10000.01,0.00010384,2]
[399420294,1766337196535,-300.0,0.00010384,2]
[399420295,1766337199089,-328.4,0.00010384,2]
[399420296,1766337201113,-283.31888554,0.00010384,2]
[399420297,1766337202666,-356.29842397,0.00010384,2]
[399420298,1766337205838,-278.1203723,0.00010384,2]
[399420299,1766337208551,-195.0,0.00010384,2]
[399420300,1766337211344,-81.49582084,0.00010384,2]
[399420301,1766337211373,-297.28229917,0.00010384,2]
[399420302,1766337214035,-293.07151983,0.00010384,2]
[399420303,1766337216908,2000.0,0.0003561,30]
[399420304,1766337228687,-2280.64270966,0.00010384,2]
[399420305,1766337228716,-575.35496106,0.00010384,2]
[399420306,1766337228776,-4288.01465856,0.00010384,2]
[399420307,1766337229117,-10000.01,0.00010384,2]
[399420308,1766337229335,-10000.01,0.00010384,2]
[399420309,1766337229588,-10000.01,0.00010384,2]
[399420310,1766337229788,-10000.01,0.00010384,2]
[399420311,1766337230150,-10000.01,0.00010384,2]
[399420312,1766337230296,-10000.01,0.00010384,2]
[399420313,1766337230519,-10000.01,0.00010384,2]
[399420314,1766337230708,-10000.01,0.00010384,2]
[399420315,1766337235587,-10000.01,0.00010384,2]
[399420316,1766337254835,-667.91837472,0.00010384,2]
[399420317,1766337254865,-693.08117626,0.00010384,2]
[399420318,1766337254954,-7278.01089804,0.00010384,2]
[399420319,1766337255007,-10000.01,0.00010384,2]
[399420320,1766337255257,-10000.01,0.00010384,2]
[399420321,1766337255442,-10000.01,0.00010384,2]
[399420322,1766337255968,-10000.01,0.00010384,2]
[399420323,1766337255981,-10000.01,0.00010384,2]
[399420324,1766337255995,-10000.01,0.00010384,2]
[399420327,1766337273326,-4320.32180093,0.00010384,2]
[399420328,1766337273349,-1359.36639814,0.00010384,2]
[399420329,1766337273707,-10000.01,0.00010384,2]
[399420330,1766337274280,-10000.01,0.00010384,2]
[399420331,1766337278859,336.7656166,0.00028961,60]
[399420332,1766337282327,-234.00403576,0.00010383,2]
[399420333,1766337282360,-194.81691536,0.00010383,2]
[399420334,1766337282390,-471.98855629,0.00010383,2]
[399420335,1766337282420,-500.0,0.00010383,2]
[399420336,1766337282450,-500.0,0.00010383,2]
[399420337,1766337282484,-500.0,0.00010383,2]
[399420338,1766337282519,-500.0,0.00010383,2]
[399420339,1766337282556,-287.55823602,0.00010383,2]
[399420340,1766337282594,-626.00289673,0.00010383,2]
[399420341,1766337282628,-500.0,0.00010383,2]
[399420342,1766337282666,-500.0,0.00010383,2]
[399420343,1766337282842,-500.0,0.00010383,2]
[399420344,1766337282878,-500.0,0.00010383,2]
[399420345,1766337282916,-500.0,0.00010383,2]
[399420346,1766337282950,-500.0,0.00010383,2]
[399420347,1766337282984,-249.89365258,0.00010383,2]
[399420348,1766337283018,-500.0,0.00010383,2]
[399420349,1766337283051,-500.0,0.00010383,2]
[399420350,1766337283085,-500.0,0.00010383,2]
[399420351,1766337283118,-500.0,0.00010383,2]
[399420352,1766337283154,-500.0,0.00010383,2]
[399420353,1766337283187,-0.22269484,0.00010383,2]
[399420354,1766337283331,-499.77730516,0.00010383,2]
[399420355,1766337283365,-500.0,0.00010383,2]
[399420356,1766337283397,-500.0,0.00010383,2]
[399420357,1766337283431,-500.0,0.00010383,2]
[399420358,1766337283688,-371.26871968,0.00010384,2]
[399420359,1766337283701,-500.0,0.00010384,2]
[399420360,1766337283716,-6000.45538968,0.00010384,2]
[399420361,1766337283731,-10000.01,0.00010384,2]
[399420362,1766337290393,406.51,0.00032599,60]
[399420363,1766337293882,-10000.01,0.00010284,2]
[399420364,1766337296972,-10000.01,0.00010284,2]
[399420365,1766337297110,-10000.01,0.00010284,2]
[399420366,1766337300408,999.0,0.00032876,120]
[399420367,1766337300667,999.0,0.00033972,120]
[399420368,1766337300909,999.0,0.00035068,120]
[399420369,1766337303151,142576.18359998,0.000341,30]
[399420370,1766337308258,4464.52282,7.945e-05,2]
[399420371,1766337308914,-3491.3768,0.00010284,2]
[399420372,1766337308943,-1200.0,0.00010383,2]
[399420373,1766337308972,-300.0,0.00010383,2]
[399420374,1766337309032,-17.2564,0.00010383,2]
[399420375,1766337309251,-132.7436,0.00010383,2]
[399420376,1766337309280,-4139.10770634,0.00010384,2]
[399420377,1766337309308,-186.87974473,0.00010384,2]
[399420378,1766337309335,-503.06537733,0.00010384,2]
[399420379,1766337309399,-76.4171432,0.00010384,2]
[399420380,1766337309428,-10000.01,0.00010384,2]
[399420381,1766337321076,-501.65512545,0.00010383,2]
[399420382,1766337321106,-1102.34063428,0.00010383,2]
[399420383,1766337321160,-6792.01848054,0.00010384,2]
[399420384,1766337321242,-10000.01,0.00010384,2]
[399420385,1766337321455,-10000.01,0.00010384,2]
[399420386,1766337321667,-10000.01,0.00010384,2]
[399420391,1766337344376,-10000.01,0.00010284,2]
[399420392,1766337359899,-10000.01,0.00010284,2]
[399420393,1766337360265,-3858.7374,0.00010284,2]
[399420394,1766337361292,300.0,0.00010283,2]
[399420395,1766337365325,184.51,0.000356,30]
[399420396,1766337368062,1982.5352,7.945e-05,2]
[399420397,1766337368086,2681.322511,7.945e-05,2]
[399420398,1766337377248,-5036.152289,0.00010357,2]
[399420399,1766337377653,-10000.01,0.00010357,2]
[399420400,1766337377841,-10000.01,0.00010357,2]
[399420401,1766337377974,-10000.01,0.00010357,2]
[399420402,1766337378660,-10000.01,0.00010357,2]
[399420403,1766337378674,-10000.01,0.00010357,2]
[399420404,1766337378688,-10000.01,0.00010357,2]
[399420405,1766337390067,-10000.01,0.00010357,2]
[399420406,1766337390430,-10000.01,0.00010357,2]
[399420408,1766337400538,-500.0,0.00010356,2]
[399420409,1766337400572,-500.0,0.00010356,2]
[399420410,1766337400606,-500.0,0.00010356,2]
[399420411,1766337400640,-500.0,0.00010356,2]
[399420412,1766337400673,-500.0,0.00010356,2]
[399420413,1766337400705,-553.14354587,0.00010356,2]
[399420415,1766337400738,-500.0,0.00010356,2]
[399420416,1766337400770,-500.0,0.00010356,2]
[399420417,1766337400803,-500.0,0.00010356,2]
[399420419,1766337401041,-893.72290826,0.00010357,2]
[399420420,1766337401059,-10000.01,0.00010357,2]
[399420421,1766337401072,-10000.01,0.00010357,2]
[399420422,1766337401097,-10000.01,0.00010357,2]
[399420423,1766337401111,-10000.01,0.00010357,2]
[399420424,1766337408118,-10000.01,0.00010357,2]
[399420425,1766337408337,-10000.01,0.00010357,2]
[399420426,1766337408460,-10000.01,0.00010357,2]
[399420427,1766337408596,-10000.01,0.00010357,2]
[399420428,1766337423601,-500.0,0.00010284,2]
[399420429,1766337425598,250.0,0.00035616,30]
[399420430,1766337426131,250.0,0.00035616,30]
[399420431,1766337426236,250.0,0.00035616,30]
[399420432,1766337426617,151.0,0.00035616,30]
[399420433,1766337426803,250.0,0.00035616,30]
[399420434,1766337426834,250.0,0.00035616,30]
[399420435,1766337426931,500.0,0.00035616,30]
[399420436,1766337427121,500.0,0.00035616,30]
[399420437,1766337427245,151.0,0.00035616,30]
[399420438,1766337427398,250.0,0.00035616,30]
[399420439,1766337427452,250.0,0.00035616,30]
[399420440,1766337427847,500.0,0.00035616,30]
[399420441,1766337427943,151.0,0.00035616,30]
[399420442,1766337428024,250.0,0.00035616,30]
[399420443,1766337428079,250.0,0.00035616,30]
[399420444,1766337428135,500.0,0.00035616,30]
[399420445,1766337428171,200.0,0.00035616,30]
[399420446,1766337428490,151.0,0.00035616,30]
[399420447,1766337428667,250.0,0.00035616,30]
[399420448,1766337428705,250.0,0.00035616,30]
[399420449,1766337428753,500.0,0.00035616,30]
[399420450,1766337429073,151.0,0.00035616,30]
[399420451,1766337429317,250.0,0.00035616,30]
[399420452,1766337429357,250.0,0.00035616,30]
[399420453,1766337429413,500.0,0.00035616,30]
[399420454,1766337429673,151.0,0.00035616,30]
[399420455,1766337429936,250.0,0.00035616,30]
[399420456,1766337429967,500.0,0.00035616,30]
[399420457,1766337430360,151.0,0.00035616,30]
[399420458,1766337430418,250.0,0.00035616,30]
[399420459,1766337430542,250.0,0.00035616,30]
[399420460,1766337430576,500.0,0.00035616,30]
[399420461,1766337430971,151.0,0.00035616,30]
[399420462,1766337431070,250.0,0.00035616,30]
[399420463,1766337431163,250.0,0.00035616,30]
[399420464,1766337431208,500.0,0.00035616,30]
[399420465,1766337431795,151.0,0.00035616,30]
[399420466,1766337431827,242.81122529,0.00035616,30]
[399420467,1766337431874,250.0,0.00035616,30]
[399420468,1766337431911,500.0,0.00035616,30]
[399420469,1766337432145,250.0,0.00035616,30]
[399420470,1766337432191,151.0,0.00035616,30]
[399420471,1766337432390,250.0,0.00035616,30]
[399420472,1766337432438,500.0,0.00035616,30]
[399420473,1766337432775,250.0,0.00035616,30]
[399420474,1766337432808,151.0,0.00035616,30]
[399420475,1766337433030,500.0,0.00035616,30]
[399420476,1766337433383,250.0,0.00035616,30]
[399420477,1766337433780,250.0,0.00035616,30]
[399420478,1766337434046,250.0,0.00035616,30]
[399420479,1766337434112,250.0,0.00035616,30]
[399420480,1766337434264,250.0,0.00035616,30]
[399420481,1766337434661,250.0,0.00035616,30]
[399420482,1766337434714,250.0,0.00035616,30]
[399420483,1766337434866,250.0,0.00035616,30]
[399420484,1766337435314,250.0,0.00035616,30]
[399420485,1766337435388,250.0,0.00035616,30]
[399420486,1766337435959,250.0,0.00035616,30]
[399420487,1766337435993,250.0,0.00035616,30]
[399420488,1766337436032,250.0,0.00035616,30]
[399420489,1766337436570,250.0,0.00035616,30]
[399420490,1766337436615,250.0,0.00035616,30]
[399420491,1766337436647,250.0,0.00035616,30]
[399420492,1766337436727,9000.01,0.00010284,2]
[399420493,1766337436750,10000.01,0.00010284,2]
[399420494,1766337436772,10000.01,0.00010284,2]
[399420495,1766337436794,4494.9337,0.00010284,2]
[399420496,1766337436839,200.0,0.00035616,30]
[399420497,1766337436893,500.0,0.00035616,30]
[399420498,1766337437196,250.0,0.00035616,30]
[399420499,1766337437250,250.0,0.00035616,30]
[399420500,1766337437298,250.0,0.00035616,30]
[399420501,1766337437485,500.0,0.00035616,30]
[399420502,1766337437825,250.0,0.00035616,30]
[399420503,1766337437874,250.0,0.00035616,30]
[399420504,1766337437910,250.0,0.00035616,30]
[399420505,1766337438101,500.0,0.00035616,30]
[399420506,1766337438423,250.0,0.00035616,30]
[399420507,1766337438504,250.0,0.00035616,30]
[399420508,1766337438553,250.0,0.00035616,30]
[399420509,1766337438768,500.0,0.00035616,30]
[399420510,1766337439028,250.0,0.00035616,30]
[399420511,1766337439407,500.0,0.00035616,30]
[399420512,1766337439655,250.0,0.00035616,30]
[399420513,1766337440104,500.0,0.00035616,30]
[399420514,1766337440296,250.0,0.00035616,30]
[399420515,1766337440711,500.0,0.00035616,30]
[399420516,1766337440920,250.0,0.00035616,30]
[399420517,1766337441326,500.0,0.00035616,30]
[399420518,1766337441539,250.0,0.00035616,30]
[399420519,1766337442747,500.0,0.00035616,30]
[399420520,1766337442860,500.0,0.00035616,30]
[399420521,1766337442896,500.0,0.00035616,30]
[399420522,1766337442930,250.0,0.00035616,30]
[399420523,1766337443197,500.0,0.00035616,30]
[399420524,1766337443299,250.0,0.00035616,30]
[399420525,1766337443821,500.0,0.00035616,30]
[399420526,1766337444054,250.0,0.00035616,30]
[399420527,1766337444436,500.0,0.00035616,30]
[399420528,1766337445556,500.0,0.00035616,30]
[399420529,1766337446168,500.0,0.00035616,30]
[399420530,1766337446792,500.0,0.00035616,30]
[399420531,1766337447422,500.0,0.00035616,30]
[399420532,1766337448082,500.0,0.00035616,30]
[399420533,1766337448792,500.0,0.00035616,30]
[399420534,1766337449422,500.0,0.00035616,30]
[399420535,1766337450531,200.0,0.00035616,30]
[399420536,1766337464641,250.0,0.00035616,30]
[399420537,1766337465236,250.0,0.00035616,30]
[399420538,1766337465828,384.56641251,0.00035616,30]
[399420539,1766337475730,199.0,0.00034246,30]
[399420540,1766337475977,199.0,0.00034931,31]
[399420541,1766337476205,199.0,0.00035616,32]
[399420542,1766337478461,258.78126183,0.00010321,2]
[399420543,1766337485687,2500.0,0.00010284,2]
[399420545,1766337552727,500.0,0.00010284,2]
[399420546,1766337558906,6741.22873817,0.00010284,2]
[399420547,1766337558933,10000.01,0.00010284,2]
[399420548,1766337558956,7957.28756183,0.00010284,2]
[399420549,1766337559579,166.06,0.000356,30]
[399420550,1766337567982,999.0,0.00032876,120]
[399420551,1766337569287,999.0,0.00033972,120]
[399420552,1766337569524,999.0,0.00035068,120]
[399420553,1766337603104,410.1408732,0.000341,30]
[399420554,1766337634938,2042.72243817,0.00010284,2]
[399420555,1766337634963,457.27756183,0.00010284,2]
[399420556,1766337667612,185.69392034,0.00010256,2]
[399420557,1766337668496,1237.976165,7.945e-05,2]
[399420558,1766337671647,552.01,0.00032576,60]
[399420559,1766337677446,346.076,0.00010284,2]
[399420560,1766337689658,163.3877,0.00010284,2]
[399420561,1766337693039,500.0,0.00032576,60]
[399420562,1766337696952,2022.377,0.00035047,40]
[399420563,1766337702940,282.604,0.00010221,2]
[399420564,1766337705541,70709.56211189,0.000329,30]
[399420565,1766337706017,551.5,0.000329,30]
[399420567,1766337725682,500.0,0.00035616,30]
[399420568,1766337726316,500.0,0.00035616,30]
[399420569,1766337726956,500.0,0.00035616,30]
[399420570,1766337727930,151.0,0.00035616,30]
[399420571,1766337728323,500.0,0.00035616,30]
[399420572,1766337728568,151.0,0.00035616,30]
[399420573,1766337728946,500.0,0.00035616,30]
[399420574,1766337729036,250.0,0.00035616,30]
[399420575,1766337729173,151.0,0.00035616,30]
[399420576,1766337729555,500.0,0.00035616,30]
[399420577,1766337729646,250.0,0.00035616,30]
[399420578,1766337729816,151.0,0.00035616,30]
[399420579,1766337730154,500.0,0.00035616,30]
[399420580,1766337730252,250.0,0.00035616,30]
[399420581,1766337730400,151.0,0.00035616,30]
[399420582,1766337730847,250.0,0.00035616,30]
[399420583,1766337731001,151.0,0.00035616,30]
[399420584,1766337731219,500.0,0.00035616,30]
[399420585,1766337731455,250.0,0.00035616,30]
[399420586,1766337731620,151.0,0.00035616,30]
[399420587,1766337731841,500.0,0.00035616,30]
[399420588,1766337732053,250.0,0.00035616,30]
[399420589,1766337732287,151.0,0.00035616,30]
[399420590,1766337732486,500.0,0.00035616,30]
[399420591,1766337732667,250.0,0.00035616,30]
[399420592,1766337732934,151.0,0.00035616,30]
[399420593,1766337733106,500.0,0.00035616,30]
[399420594,1766337733302,250.0,0.00035616,30]
[399420595,1766337733586,151.0,0.00035616,30]
[399420596,1766337734549,250.0,0.00035616,30]
[399420597,1766337734591,151.0,0.00035616,30]
[399420598,1766337734655,250.0,0.00035616,30]
[399420599,1766337734800,151.0,0.00035616,30]
[399420600,1766337735147,250.0,0.00035616,30]
[399420601,1766337735395,151.0,0.00035616,30]
[399420602,1766337735831,250.0,0.00035616,30]
[399420603,1766337736000,151.0,0.00035616,30]
[399420604,1766337736462,250.0,0.00035616,30]
[399420605,1766337736594,151.0,0.00035616,30]
[399420606,1766337737089,250.0,0.00035616,30]
[399420607,1766337737202,151.0,0.00035616,30]
[399420608,1766337737772,250.0,0.00035616,30]
[399420609,1766337737816,151.0,0.00035616,30]
[399420610,1766337738433,250.0,0.00035616,30]
[399420611,1766337738744,151.0,0.00035616,30]
[399420612,1766337739049,250.0,0.00035616,30]
[399420613,1766337739376,151.0,0.00035616,30]
[399420614,1766337739994,151.0,0.00035616,30]
[399420615,1766337740145,250.0,0.00035616,30]
[399420616,1766337740823,250.0,0.00035616,30]
[399420617,1766337741717,250.0,0.00035616,30]
[399420618,1766337743222,500.0,0.00035616,30]
[399420619,1766337743735,-250.0,0.00010321,2]
[399420620,1766337743836,500.0,0.00035616,30]
[399420621,1766337745090,500.0,0.00035616,30]
[399420622,1766337745513,500.0,0.00035616,30]
[399420623,1766337745877,500.0,0.00035616,30]
[399420624,1766337746531,500.0,0.00035616,30]
[399420625,1766337747150,500.0,0.00035616,30]
[399420626,1766337747798,500.0,0.00035616,30]
[399420627,1766337748456,500.0,0.00035616,30]
[399420628,1766337749125,500.0,0.00035616,30]
[399420629,1766337749445,200.0,0.00035616,30]
[399420630,1766337749760,500.0,0.00035616,30]
[399420631,1766337750393,500.0,0.00035616,30]
[399420632,1766337753108,336.33,0.000356,30]
[399420633,1766337753142,331.97102116,0.00035616,30]
[399420636,1766337763472,2500.0,0.00010284,2]
[399420637,1766337764980,-235.0,0.00010321,2]
[399420638,1766337781891,-347.74704666,0.0001034,2]
[399420639,1766337781925,-1275.0752994,0.00010347,2]
[399420640,1766337781954,-300.0,0.00010349,2]
[399420641,1766337782941,-7486.42626071,0.0001035,2]
[399420643,1766337794683,-1200.0,0.00010349,2]
[399420644,1766337794718,-250.01,0.0001035,2]
[399420645,1766337794776,-7099.99,0.0001035,2]
[399420646,1766337794983,-10000.01,0.0001035,2]
[399420647,1766337795136,-3688.87199721,0.0001035,2]
[399420648,1766337795158,-2622.26600558,0.0001035,2]
[399420649,1766337795246,-300.0,0.00010355,2]
[399420650,1766337795275,-1200.0,0.00010355,2]
[399420651,1766337795305,-300.0,0.00010355,2]
[399420652,1766337795337,-500.0,0.00010355,2]
[399420653,1766337795372,-500.0,0.00010355,2]
[399420654,1766337795408,-500.0,0.00010355,2]
[399420655,1766337795441,-500.0,0.00010355,2]
[399420656,1766337795474,-500.0,0.00010355,2]
[399420657,1766337795506,-500.0,0.00010355,2]
[399420658,1766337795621,-500.0,0.00010355,2]
[399420659,1766337795653,-500.0,0.00010355,2]
[399420660,1766337795683,-500.0,0.00010355,2]
[399420661,1766337795714,-500.0,0.00010355,2]
[399420662,1766337795744,-500.0,0.00010355,2]
[399420663,1766337795774,-500.0,0.00010355,2]
[399420664,1766337795804,-500.0,0.00010355,2]
[399420665,1766337795835,-500.0,0.00010355,2]
[399420666,1766337795866,-500.0,0.00010355,2]
[399420667,1766337795897,-500.0,0.00010355,2]
[399420668,1766337795996,-500.0,0.00010355,2]
[399420669,1766337796032,-500.0,0.00010355,2]
[399420670,1766337796066,-500.0,0.00010355,2]
[399420671,1766337796100,-299.55204603,0.00010355,2]
[399420672,1766337796133,-500.0,0.00010355,2]
[399420673,1766337796165,-500.0,0.00010355,2]
[399420674,1766337796196,-500.0,0.00010355,2]
[399420675,1766337796229,-500.0,0.00010355,2]
[399420676,1766337796260,-500.0,0.00010355,2]
[399420677,1766337796291,-500.0,0.00010355,2]
[399420678,1766337796378,-500.0,0.00010355,2]
[399420679,1766337796408,-500.0,0.00010355,2]
[399420680,1766337796452,-500.0,0.00010355,2]
[399420681,1766337796492,-500.0,0.00010355,2]
[399420682,1766337796534,-500.0,0.00010355,2]
[399420683,1766337796575,-500.0,0.00010355,2]
[399420684,1766337796620,-500.0,0.00010355,2]
[399420685,1766337796664,-500.0,0.00010355,2]
[399420686,1766337796707,-500.0,0.00010355,2]
[399420687,1766337796748,-500.0,0.00010355,2]
[399420688,1766337797012,-500.0,0.00010355,2]
[399420689,1766337797055,-500.0,0.00010355,2]
[399420690,1766337797096,-500.0,0.00010355,2]
[399420691,1766337797136,-500.0,0.00010355,2]
[399420692,1766337797178,-500.0,0.00010355,2]
[399420693,1766337797218,-500.0,0.00010355,2]
[399420694,1766337797262,-500.0,0.00010355,2]
[399420695,1766337797307,-500.0,0.00010355,2]
[399420696,1766337797347,-500.0,0.00010355,2]
[399420697,1766337797386,-500.0,0.00010355,2]
[399420698,1766337798305,-300.93590794,0.00010355,2]
[399420699,1766337798322,-199.06409206,0.00010355,2]
[399420700,1766337798333,-300.93590794,0.00010355,2]
[399420701,1766337798350,-0.01,0.00010355,2]
[399420702,1766337843380,300.0,0.00010354,2]
[399420704,1766337874108,1003.31,0.00029415,60]